Cogmind - Beta 13 @@@ ROGUE MODE // 2024.04.18 @ 23:04:38 Player: pro100_Player Result: Destroyed by D-53 Grenadier with Mini Grenade Launcher Performance ------------- Evolutions (0) 0 Regions Visited (4) 800 Robots Destroyed (24) 120 Value Destroyed (397) 397 Prototype IDs (5) 100 Alien Tech Used (0) 0 Bonus (0) 0 TOTAL SCORE: 1417 Bonus ------- None Cogmind --------- Core Integrity 0/250 Matter 164/300 Energy 100/100 System Corruption 0% Temperature Cool (0) Movement Core (350) Ox6 Location -9/Mines Parts ------- > --- POWER (1) -------- (None) > --- PROPULSION (2) --- (None) > --- UTILITY (2) ------ Large Storage Unit Targeting Computer > --- WEAPON (2) ------- (None) > --- INVENTORY (15) --- Light Deuterium Engine Aluminum Leg Aluminum Leg Improved Heat Sink Small Storage Unit Experimental Sensor Array Propulsion Shielding Hacking Suite Shotgun Bore Cannon Mini Grenade Launcher Mini Grenade Launcher Scythe Makeshift Spear Peak State ------------ > --- POWER ------------ Ion Engine > --- PROPULSION ------- Light Treads Light Treads > --- UTILITY ---------- Large Storage Unit Targeting Computer > --- WEAPON ----------- Shotgun Makeshift Spear > --- INVENTORY -------- Light Deuterium Engine Aluminum Leg Aluminum Leg Improved Heat Sink Small Storage Unit Experimental Sensor Array Propulsion Shielding Hacking Suite Shotgun Bore Cannon Rocket Launcher Mini Grenade Launcher Mini Grenade Launcher Mini Grenade Launcher Scythe [Rating: 15] Favorites ----------- Power Ion Engine Engine Ion Engine Propulsion Light Treads Treads Light Treads Utility Targeting Computer Storage Large Storage Unit Processor Targeting Computer Weapon Shotgun Energy Gun Medium Laser Ballistic Gun Shotgun Launcher Mini Grenade Launcher Piercing Weapon Makeshift Spear Build | -11 -10 -10 -10 -9 ------- Run | Yrd Mat Min Exi Min Slots Evolved . | . . . . . Power . | . . . . . Propulsion . | . . . . . Utility . | . . . . . Weapon . | . . . . . Parts Attached 31 | 6 17 2 . 6 Power 5 | 1 3 . . 1 Engine 5 | 1 3 . . 1 Core . | . . . . . Reactor . | . . . . . Propulsion 6 | 2 4 . . . Treads 6 | 2 4 . . . Leg . | . . . . . Wheel . | . . . . . Hover . | . . . . . Flight . | . . . . . Utility 3 | 1 2 . . . Device . | . . . . . Storage 2 | 1 1 . . . Processor 1 | . 1 . . . Hackware . | . . . . . Protection . | . . . . . Artifact . | . . . . . Weapon 17 | 2 8 2 . 5 Energy Gun 1 | 1 . . . . Energy Cannon . | . . . . . Ballistic Gun 11 | 1 8 1 . 1 Ballistic Cannon . | . . . . . Launcher 4 | . . 1 . 3 Special Weapon . | . . . . . Impact Weapon . | . . . . . Slashing Weapon . | . . . . . Piercing Weapon 1 | . . . . 1 Special Melee Weapon . | . . . . . Unidentified Prototypes . | . . . . . Parts Lost 6 | . . . . 6 Power 1 | . . . . 1 Propulsion 2 | . . . . 2 Utility . | . . . . . Weapon 3 | . . . . 3 Highest Loss Streak 6 | . . . . 6 To Critical Strikes . | . . . . . Average Slot Usage (%) 99 | . 98 100 100 100 Engine 13 | . 13 14 14 14 Treads 27 | . 27 28 28 28 Storage 14 | . 14 14 14 14 Processor 13 | . 13 14 14 14 Energy Gun 3 | . 6 . . . Ballistic Gun 24 | . 21 28 28 26 Naked Turns . | . . . . . Heaviest Build 31 | 13 31 31 31 31 Greatest Support 40 | 40 40 40 40 40 Greatest Overweight (x) . | . . . . . Average Overweight (x) . | . . . . . Largest Inventory Capacity 15 | 8 15 15 15 15 Average Capacity 12 | 7 11 15 15 15 Most Carried 15 | 7 12 15 15 15 Average Carried 11 | 5 8 13 15 14 Final Capacity 15 | 8 15 15 15 15 Final Carried 15 | 7 12 15 15 14 Class Distribution -------------------- 100% | Mutant Dominant Class ---------------- Mutant | -10/Materials Mutant | -10/Mines Mutant | -10/Exiles Mutant | -9/Mines Resources | -11 -10 -10 -10 -9 ----------- Run | Yrd Mat Min Exi Min Matter Collected 771 | 264 338 102 . 67 Remotely . | . . . . . Salvage Created 816 | 82 662 44 . 28 Parts 55 | 4 42 6 . 3 Haulers Intercepted 2 | . 2 . . . Recyclers Shooed 2 | . 1 1 . . Parts Field Recycled . | . . . . . Retrieved Matter . | . . . . . Parts Self-Destructed . | . . . . . Prevented . | . . . . . Kills | -11 -10 -10 -10 -9 ------- Run | Yrd Mat Min Exi Min Combat Hostiles Destroyed 23 | . 9 3 . 11 Guns 14 | . 9 3 . 2 AOE 9 | . . . . 9 Classes Destroyed 9 | 2 6 . . 1 Worker 3 | 1 2 . . . Builder 2 | . 1 . . 1 Hauler 2 | . 2 . . . Recycler 3 | 1 2 . . . Operator 1 | . 1 . . . Watcher 1 | . 1 . . . Swarmer 6 | . 3 3 . . Grunt 6 | . 6 . . . Assembled 11 | . . . . 11 Best Kill Streak 12 | 2 3 3 . 12 Combat Bots Only 11 | . 3 3 . 11 Max Kills in Single Turn 5 | 1 1 2 . 5 Gunslinging 1 | . . 1 . . Exploded 5 | . . . . 5 Melee . | . . . . . Uniques/NPCs Destroyed . | . . . . . Combat | -11 -10 -10 -10 -9 -------- Run | Yrd Mat Min Exi Min Hostile Shots Fired 64 | . 29 9 . 26 Missed 13 | . 6 3 . 4 Damage Taken 1211 | . 284 50 . 877 Core 258 | . 46 9 . 203 Absorbed by Shields . | . . . . . Regen/Repaired (Parts) 219 | . 219 . . . Core Remaining (%) 100 | 100 . . . . Volleys Fired 80 | 4 54 8 . 14 Largest 2 | 2 2 2 . 2 Hottest 70 | 70 70 53 . 56 Shots Fired 152 | 8 108 16 . 20 Gun 143 | 8 108 15 . 12 Cannon . | . . . . . Launcher 9 | . . 1 . 8 Special . | . . . . . Kinetic 103 | 4 72 15 . 12 Thermal 40 | 4 36 . . . Explosive 9 | . . 1 . 8 Electromagnetic . | . . . . . Robot Hit Streak 12 | 6 11 3 . 12 Robot Miss Streak 5 | . 4 5 . 3 Penetration Max . | . . . . . Secondary Targets 1 | . . 1 . . Max Gunslinging Chain 1 | . . 1 . . Shots Hit Robots 101 | 6 70 10 . 15 Core Hits 68 | 3 34 5 . 26 Critical Kills 1 | . 1 . . . Critical Parts Destroyed . | . . . . . Critical Strikes 4 | 1 3 . . . Burn 3 | 1 2 . . . Destroy 1 | . 1 . . . Melee Attacks 1 | . . . . 1 Impact . | . . . . . Slashing . | . . . . . Piercing 1 | . . . . 1 Sneak Attacks . | . . . . . Combat Hostiles . | . . . . . Follow-up Attacks . | . . . . . Damage Inflicted 2056 | 66 877 139 . 974 Guns 1283 | 66 877 139 . 201 Cannons . | . . . . . Explosions 773 | . . . . 773 Melee . | . . . . . Ramming . | . . . . . Kinetic 945 | 15 590 139 . 201 Thermal 338 | 51 287 . . . Explosive 773 | . . . . 773 Electromagnetic . | . . . . . Impact . | . . . . . Slashing . | . . . . . Piercing . | . . . . . Highest Corruption . | . . . . . Average Corruption . | . . . . . Corruption Purged . | . . . . . Corruption Blocked . | . . . . . Overload Shots . | . . . . . Overflow Damage 61 | . . . . 61 Projectiles . | . . . . . Explosions 61 | . . . . 61 Melee . | . . . . . Knockbacks . | . . . . . Impact . | . . . . . Kinetic . | . . . . . Secondary . | . . . . . Self-Inflicted Damage 185 | . . . . 185 Shots 4 | . . . . 4 Rammed . | . . . . . Targets Rammed . | . . . . . Kicked . | . . . . . Crushed . | . . . . . Highest Temperature 135 | 40 135 1 . 17 Average Temperature 37 | 19 40 1 . 12 Received Heat Transfer 137 | . 111 6 . 20 Siege Activations . | . . . . . Robots Corrupted . | . . . . . Combat Hostiles . | . . . . . Parts Fried . | . . . . . Impact Corruptions . | . . . . . Robots Melted . | . . . . . Combat Hostiles . | . . . . . Parts Melted . | . . . . . Heat Transferred 1221 | 222 999 . . . Parts Sabotaged . | . . . . . Parts Stolen . | . . . . . Parts Stripped . | . . . . . Power Chain Reactions . | . . . . . Alert | -11 -10 -10 -10 -9 ------- Run | Yrd Mat Min Exi Min Peak Influence 143 | 10 143 86 . 34 Initial 9 | . 6 9 . . Average 33 | 1 51 24 . . Maximum Alert Level . | . . . . . Low Security (%) 100 | 100 100 100 . 100 Level 1 . | . . . . . Level 2 . | . . . . . Level 3 . | . . . . . Level 4 . | . . . . . Level 5 . | . . . . . High Security . | . . . . . Max Security . | . . . . . Squads Dispatched 2 | . 1 1 . . Investigation 1 | . . 1 . . Extermination . | . . . . . Reinforcement 1 | . 1 . . . Assault . | . . . . . Garrison . | . . . . . Intercept . | . . . . . Searches Triggered . | . . . . . Construction Impeded . | . . . . . Haulers Reinforced . | . . . . . Active Scanning Responses . | . . . . . Cargo Convoy Interrupts . | . . . . . Stealth | -11 -10 -10 -10 -9 --------- Run | Yrd Mat Min Exi Min Distress Signals . | . . . . . Communications Jammed . | . . . . . Distress Signals . | . . . . . Times Spotted 40 | . 19 5 . 16 Peak Tracking Total 13 | . 5 3 . 13 Tactical Retreats . | . . . . . Traps | -11 -10 -10 -10 -9 ------- Run | Yrd Mat Min Exi Min Traps Triggered 5 | . 5 . . . Indirectly . | . . . . . Trap Hack Attempts . | . . . . . Triggered . | . . . . . Disarmed . | . . . . . Reprogrammed . | . . . . . Reused . | . . . . . Traps Extracted . | . . . . . Installed . | . . . . . Triggered . | . . . . . Machines | -11 -10 -10 -10 -9 ---------- Run | Yrd Mat Min Exi Min Machines Disabled 4 | . . 4 . . Max in Single Turn 4 | . . 4 . . Machines Repaired . | . . . . . Machines Dismantled . | . . . . . Machines Sabotaged . | . . . . . Overloaded Fab Kills . | . . . . . Hacking | -11 -10 -10 -10 -9 --------- Run | Yrd Mat Min Exi Min Machines Accessed 12 | . 10 1 1 . Terminals 7 | . 7 . . . Fabricators . | . . . . . Repair Stations 1 | . 1 . . . Recycling Units 2 | . 2 . . . Scanalyzers . | . . . . . Garrison Access . | . . . . . Total Hacks 33 | . 31 1 1 . Successful 17 | . 15 1 1 . Failed 16 | . 16 . . . Catastrophic 2 | . 2 . . . Database Lockouts . | . . . . . Manual 14 | . 14 . . . Terminals 19 | . 19 . . . Fabricators . | . . . . . Repair Stations 6 | . 6 . . . Recycling Units 6 | . 6 . . . Scanalyzers . | . . . . . Garrison Access . | . . . . . Terminal Hacks 9 | . 7 1 1 . Record 1 | . . . 1 . Prototype ID Bank 3 | . 3 . . . Open Door 1 | . . 1 . . Branch Access Points 1 | . 1 . . . Terminal Index 1 | . 1 . . . Alert Level 1 | . 1 . . . Unreport Threat 1 | . 1 . . . Fabricator Hacks . | . . . . . Repair Station Hacks 6 | . 6 . . . Scan Component 3 | . 3 . . . Repair 3 | . 3 . . . Recycling Unit Hacks 2 | . 2 . . . Report Inventory 1 | . 1 . . . Retrieve Components 1 | . 1 . . . Scanalyzer . | . . . . . Garrison Access Hacks . | . . . . . Unauthorized Hacks . | . . . . . Terminals . | . . . . . Fabricators . | . . . . . Repair Stations . | . . . . . Recycling Units . | . . . . . Scanalyzers . | . . . . . Garrison Access . | . . . . . Data Cores Recovered . | . . . . . Used . | . . . . . Hacking Detections 9 | . 9 . . . Full Trace Events . | . . . . . Feedback Events . | . . . . . Feedback Blocked . | . . . . . Robot Schematics Acquired . | . . . . . Robots Built . | . . . . . Authchips . | . . . . . Time . | . . . . . Total Robot Build Rating . | . . . . . Part Schematics Acquired . | . . . . . Parts Built . | . . . . . Authchips . | . . . . . Time . | . . . . . Total Part Build Rating . | . . . . . Parts Repaired 3 | . 3 . . . Time 78 | . 78 . . . Parts Recycled . | . . . . . Recycled Matter . | . . . . . Retrieved Matter . | . . . . . Retrieved Components 2 | . 2 . . . Parts Scanalyzed . | . . . . . Part Schematics Acquired . | . . . . . Parts Damaged . | . . . . . Bothacking | -11 -10 -10 -10 -9 ------------ Run | Yrd Mat Min Exi Min Used RIF Installer . | . . . . . Robots Hacked . | . . . . . Non-combat . | . . . . . Combat . | . . . . . Robot Hacks Applied . | . . . . . Relay Couplers Released . | . . . . . Fabnet Peak Effective % . | . . . . . Robots Rewired . | . . . . . Allies Hacked . | . . . . . Hacks Repelled . | . . . . . Allies | -11 -10 -10 -10 -9 -------- Run | Yrd Mat Min Exi Min Total Allies . | . . . . . Largest Group . | . . . . . Highest-Rated Group . | . . . . . Highest-Rated Ally . | . . . . . Total Orders . | . . . . . Ally Attacks . | . . . . . Total Damage . | . . . . . Kills . | . . . . . Allies Corrupted . | . . . . . Allies Melted . | . . . . . Intel | -11 -10 -10 -10 -9 ------- Run | Yrd Mat Min Exi Min Robot Analysis Total . | . . . . . Derelict Logs Recovered 1 | . . 1 . . Drone Launches . | . . . . . Drone Recoveries . | . . . . . Exploration | -11 -10 -10 -10 -9 ------------- Run | Yrd Mat Min Exi Min Turns Passed 3268 | 126 1555 928 215 444 Spaces Moved 1736 | 65 753 541 135 242 Core 6 | 6 . . . . Treads 1730 | 59 753 541 135 242 Legs . | . . . . . Wheels . | . . . . . Hover . | . . . . . Flight . | . . . . . Fastest Speed 50 | 50 160 160 160 160 Average Speed 159 | 149 160 160 160 160 Slowest Speed 160 | 160 160 160 160 160 Overloaded Moves . | . . . . . Propulsion Burnouts . | . . . . . Robots Hopped . | . . . . . Cave-ins Triggered . | . . . . . Exploration Rate (%) 60 | 5 89 97 49 62 Regions Visited 4 Branch Regions 3 Pre-discovered Areas 1 | . . 1 . . Known Exits Taken 1 | . 1 . . . Unknown Exits Taken 3 | 1 . 1 1 . Scrap Searched 2 | . . 1 . 1 Spaces Dug . | . . . . . Terrain Destroyed 113 | . . 34 . 79 Melee . | . . . . . Projectile . | . . . . . AOE 113 | . . 34 . 79 Terrain Rammed . | . . . . . Walls Destroyed . | . . . . . Machines Disabled . | . . . . . Actions | -11 -10 -10 -10 -9 --------- Run | Yrd Mat Min Exi Min Total 2082 | 85 998 587 134 278 Wait 194 | 1 152 32 . 9 Move 1732 | 64 752 540 134 242 Hop . | . . . . . Pick Up 29 | 10 12 4 . 3 Fast Attach 16 | 3 13 . . . Attach 4 | 3 . . . 1 Detach . | . . . . . Swap 11 | . 4 2 . 5 Drop 15 | . 11 1 . 3 Fire 80 | 4 54 8 . 14 Melee 1 | . . . . 1 Ram . | . . . . . Kick . | . . . . . Crush . | . . . . . Escape Stasis . | . . . . . Rewire . | . . . . . Trap . | . . . . . Miscellaneous . | . . . . . Route ------- -11/Scrapyard -10/Materials (discovered 3 exits: [*Mat x2] / *Min) -10/Mines (discovered 3 exits: [*Mat x2] / *Exi) -10/Exiles -9/Mines (discovered 1 exit: [*Mat]) History --------- Turn | Location | Event 3 | -11/Scrapyard | Discovered new exit (range 16) 127 | -11/Scrapyard | Entered Materials 300 | -10/Materials | Build established: Mutant 304 | -10/Materials | Identified exit to Mines 441 | -10/Materials | Discovered new exit (range 12) 546 | -10/Materials | Discovered new exit (range 12) 730 | -10/Materials | Repaired Lgt. Treads 758 | -10/Materials | Repaired Assault Rifle 785 | -10/Materials | Repaired Lgt. Treads 1682 | -10/Materials | Entered Mines 1706 | -10/Mines | Met a Derelict bent on vengeance 1777 | -10/Mines | Learned location of Storage (-9) 1883 | -10/Mines | Learned 4 Materials zone layouts 1977 | -10/Mines | Found a damaged Exp. Sensor Array with a note attached 1981 | -10/Mines | Found Prototype Device 2036 | -10/Mines | Discovered new exit (range 3) 2155 | -10/Mines | A weapon hastily lodged in a ceiling crevice suddenly fell to the ground 2370 | -10/Mines | Discovered new exit (range 15) 2388 | -10/Mines | Met a Derelict shopkeep closing up shop 2600 | -10/Mines | Deemed a non-threat by the Exiles lab entrance 2602 | -10/Mines | Discovered new exit (range 5) 2610 | -10/Mines | Entered Exiles 2647 | -10/Exiles | Met 8R-AWN 2676 | -10/Exiles | Met EX-HEX 2740 | -10/Exiles | Met EX-DEC 2804 | -10/Exiles | Discovered new exit (range 14) 2825 | -10/Exiles | Entered Mines 2854 | -9/Mines | Discovered new exit (range 10) 3152 | -9/Mines | Received a Rocket Launcher from a helpful Derelict 3189 | -9/Mines | Assembled infested the area 3194 | -9/Mines | Assisted by a Guerilla fighting off Assembled 3216 | -9/Mines | Core integrity fell below 50% 3248 | -9/Mines | Destroyed 11 combat bots 3266 | -9/Mines | Core integrity fell below 20% 3269 | -9/Mines | Destroyed by D-53 Grenadier with Mini Grenade Launcher Last Messages --------------- 03233_ The unstable cave ceiling collapses. 03236_ U-05 Engineer lays Concrete. 03237_ Dropped Ion Engine. 03238_ U-05 Engineer builds a Wall. 03238_ Acquired Corrupted Bore Cannon. 03246_ Acquired 11 matter. 03248_ Acquired 14 matter. 03249_ Acquired 4 matter. 03251_ The unstable cave ceiling collapses. 03252_ Acquired 7 matter. 03252_ R-06 Scavenger collects Com. Wheel. 03256_ Acquired 4 matter. 03260_ R-06 Scavenger destroyed. 03262_ Mni. Grenade Launcher destroyed. 03262_ Lgt. Treads destroyed. 03264_ The unstable cave ceiling collapses. 03264_ Lgt. Treads destroyed. 03266_ Shotgun destroyed. 03269_ Rocket Launcher destroyed. 03269_ Ion Engine destroyed. Map ----- +----------------------------------------------------+ | | | | | | | ?????????????????????????????????????????????????? | | ?????????????????????????????????????????????????? | | ?????????????????????????????????????????????????? | | ?????????????????????????????????????????????????? | | ?????????????????????????????????????????????????? | | ?????????????????????????????????????????????????? | | ?????????????????????????????????????????????????? | | ?????????????????????????????????????????????????? | | ???????????????????????????????#?????????????????? | | ??????????????????????##??????## ????????????????? | | ???????????????? ???### ##???## ????????????????? | | ?????????????? ??# ???? ????????????????? | | ?????????????? ## ##?? ?#??????????????? | | ????????????? # ##?? #??????????????? | | ?????????????? < #??# #?###??????##### | | ???????????????? d #### ?? #?????## # | | ????????????????? d = ### ####?## | | ?????????????????? %? % ### | | ???????????????????# #??# | | ???????????????????# ! #?## ## | | ????????????????????# #?#* ## #### | | ????????????????????# ##### # ! #??# | | ????????????????????# @ * !%* ##??# | | ????????????????????# ###%# # ##???# | | ????????????????????# #?# #????## | | ????????????????????# ##?# # # #?????## | | ????????????????????# ##??######## #????### | | ???????????????????# ####??????????# #???## | | ??????????????????# ???? ????????# #???# | | ?????????????????# """%??? #??????# #???# | | ????????????????# """ ??? ?????# ##??# | | ????????????????# """ ??? ????# ##?## | | ????????????????## ??? ?? ??## #??# | | ?????????????????# ????##?? ## #### | | ????????????????? ????????? | | ??????????????????????????? | | ?????????????????????#????? ### #### ### | | ???????????????????? ##????? #### #??# #??# #?? | | ???????????????????? ##???????###???# #??# #?? | | ???????????????????? ##????????????# ##?# ### | | ???????????????????? ###??????????# ### | | ????????????????????? ##??????#### ###### | | ????????????????????? #?????## #???? | | ??????####??????????? #?????# #??## | | ??????# #?????????? #?????## ##??# | | ??????# ##????????# #?????## ## #???# | | ??????# #????????# #?????## #?## #???# | +----------------------------------------------------+ Best States ------------- Heat Dissipation 25 Energy Generation 10 Energy Capacity 250 Matter Stores 300 Matter Capacity 300 Sight Range 16 Terrain Scan Density 10 Evasion (%) 40 Targeting Accuracy 5 Recoil Reduction 2 Item Schematics ----------------- None Robot Schematics ------------------ None Fabricated ------------ Nothing Alien Tech Used ----------------- None Achievements -------------- Quick And Dirty Challenges ------------ None Game ------ Seed MolecularGreatNanovents Manual? 0 Play Time 00:22:51 Cumulative 25.9 hours Start 2024.04.14 @ 23:04:01 End 2024.04.18 @ 23:04:38 Sessions 2 Manual Loads 0 Difficulty Rogue Special Mode None Game No. 22 Rogue 22 Adventurer 0 Explorer 0 Win Type - Total 0 Types 0/0/0/0/0/0/0/0/0 Lore% 26 Gallery% 32 Achievement% 30 Wizard Run 0 Options --------- Layout 1 ASCII 0 Keyboard 0 Movement Numpad Keybinds 0 Fullscreen 1 Font 24/Terminus Map View 50x35 Zoom Use 0% Tactical HUD 1 Map Filters NONE Filters NONE Steam 0 RUN: 411523cb-f9d7-473a-b813-213206545206